[Event "*** SCC Grand Prix: Titled Tuesday Blitz"]
[Site "Chess.com"]
[Date "2020.06.23"]
[Round "1"]
[White "Anton_Demchenko"]
[Black "themind1hunter"]
[Result "1-0"]
[WhiteElo "2854"]
[BlackElo "2440"]
[TimeControl "180+1"]
[EndTime "10:07:21 PDT"]
[Termination "Anton_Demchenko won by resignation"]

1. d4 {[%clk 0:02:58.4]} 1... Nf6 {[%clk 0:02:55]} 2. Nf3 {[%clk 0:02:56.8]}
2... d5 {[%clk 0:02:53.9]} 3. Bf4 {[%clk 0:02:56.2]} 3... e6 {[%clk 0:02:53.5]}
4. e3 {[%clk 0:02:56.4]} 4... Bd6 {[%clk 0:02:53.9]} 5. Ne5 {[%clk 0:02:56.6]}
5... O-O {[%clk 0:02:53.2]} 6. Nd2 {[%clk 0:02:56.4]} 6... c5 {[%clk 0:02:52.4]}
7. c3 {[%clk 0:02:56.9]} 7... c4 {[%clk 0:02:49.3]} 8. Be2 {[%clk 0:02:31.4]}
8... Qc7 {[%clk 0:02:37.5]} 9. Bg3 {[%clk 0:02:29.9]} 9... Nfd7 {[%clk
0:02:31.7]} 10. Nxd7 {[%clk 0:02:17.3]} 10... Bxd7 {[%clk 0:02:28]} 11. e4
{[%clk 0:02:16]} 11... Nc6 {[%clk 0:02:25.9]} 12. e5 {[%clk 0:01:48.7]} 12...
Be7 {[%clk 0:02:11.3]} 13. Nf1 {[%clk 0:01:45.6]} 13... b5 {[%clk 0:02:10.2]}
14. Ne3 {[%clk 0:01:31.3]} 14... b4 {[%clk 0:01:50.2]} 15. O-O {[%clk
0:01:30.8]} 15... bxc3 {[%clk 0:01:47.3]} 16. bxc3 {[%clk 0:01:31.7]} 16... Qa5
{[%clk 0:01:47.8]} 17. Qd2 {[%clk 0:01:28.9]} 17... Rab8 {[%clk 0:01:39.1]} 18.
h4 {[%clk 0:01:22.2]} 18... Rb7 {[%clk 0:01:11.3]} 19. Rab1 {[%clk 0:01:02.8]}
19... Rfb8 {[%clk 0:01:08]} 20. Rxb7 {[%clk 0:01:02.8]} 20... Rxb7 {[%clk
0:01:08.9]} 21. h5 {[%clk 0:00:57.8]} 21... Qa3 {[%clk 0:00:46.4]} 22. Nd1
{[%clk 0:00:57.9]} 22... h6 {[%clk 0:00:42]} 23. Bf4 {[%clk 0:00:57.8]} 23...
Rb1 {[%clk 0:00:40]} 24. Bf3 {[%clk 0:00:23.6]} 24... Ra1 {[%clk 0:00:35.5]} 25.
g4 {[%clk 0:00:22.7]} 25... Rxa2 {[%clk 0:00:35.4]} 26. Qe3 {[%clk 0:00:23.3]}
26... Bf8 {[%clk 0:00:31.2]} 27. g5 {[%clk 0:00:23.3]} 27... Ne7 {[%clk
0:00:26.2]} 28. Bg4 {[%clk 0:00:23.5]} 28... hxg5 {[%clk 0:00:22.4]} 29. Bxg5
{[%clk 0:00:24.4]} 29... Nf5 {[%clk 0:00:21.5]} 30. Bxf5 {[%clk 0:00:24]} 30...
exf5 {[%clk 0:00:22.4]} 31. h6 {[%clk 0:00:24.7]} 31... g6 {[%clk 0:00:21.8]}
32. h7+ {[%clk 0:00:19.6]} 32... Kxh7 {[%clk 0:00:17.6]} 33. Qh3+ {[%clk
0:00:17.2]} 33... Kg8 {[%clk 0:00:18]} 34. Bf6 {[%clk 0:00:17.5]} 34... Bg7
{[%clk 0:00:18.3]} 35. Kg2 {[%clk 0:00:16.6]} 35... Ra1 {[%clk 0:00:06.4]} 36.
Rh1 {[%clk 0:00:15.7]} 36... Rxd1 {[%clk 0:00:05.1]} 37. Qh8+ {[%clk 0:00:14.8]}
1-0

[Event "*** SCC Grand Prix: Titled Tuesday Blitz"]
[Site "Chess.com"]
[Date "2020.06.23"]
[Round "1"]
[White "Artyom_ChessMate"]
[Black "picturesquecheck"]
[Result "1-0"]
[WhiteElo "2505"]
[BlackElo "2081"]
[TimeControl "180+1"]
[EndTime "10:07:21 PDT"]
[Termination "Artyom_ChessMate won by resignation"]

1. e4 {[%clk 0:03:00.9]} 1... c5 {[%clk 0:02:56.6]} 2. Nc3 {[%clk 0:03:00.6]}
2... Nc6 {[%clk 0:02:55.7]} 3. Bb5 {[%clk 0:03:00.7]} 3... g6 {[%clk 0:02:55.8]}
4. Bxc6 {[%clk 0:03:00.3]} 4... bxc6 {[%clk 0:02:55.6]} 5. d3 {[%clk 0:03:01.2]}
5... Bg7 {[%clk 0:02:55.9]} 6. f4 {[%clk 0:03:02.1]} 6... d6 {[%clk 0:02:56.4]}
7. Nf3 {[%clk 0:03:02]} 7... Nf6 {[%clk 0:02:56.9]} 8. O-O {[%clk 0:03:02.3]}
8... O-O {[%clk 0:02:57.1]} 9. Qe1 {[%clk 0:03:02.7]} 9... c4 {[%clk 0:02:55.1]}
10. Qh4 {[%clk 0:02:57.2]} 10... cxd3 {[%clk 0:02:54.6]} 11. cxd3 {[%clk
0:02:58.1]} 11... Nd7 {[%clk 0:02:45.9]} 12. f5 {[%clk 0:02:56.1]} 12... e6
{[%clk 0:02:43.4]} 13. Bg5 {[%clk 0:02:39.1]} 13... f6 {[%clk 0:02:42.8]} 14.
Be3 {[%clk 0:02:33.9]} 14... exf5 {[%clk 0:02:42.3]} 15. exf5 {[%clk 0:02:32]}
15... Ne5 {[%clk 0:02:42.4]} 16. fxg6 {[%clk 0:02:22.7]} 16... hxg6 {[%clk
0:02:41]} 17. Nxe5 {[%clk 0:02:03]} 17... dxe5 {[%clk 0:02:40.3]} 18. Qc4+
{[%clk 0:01:41.9]} 18... Kh8 {[%clk 0:02:33.2]} 19. Ne4 {[%clk 0:01:39]} 19...
Qd5 {[%clk 0:02:26.6]} 20. Qc2 {[%clk 0:01:34.6]} 20... Bf5 {[%clk 0:02:23.9]}
21. Nc5 {[%clk 0:01:33.6]} 21... Rad8 {[%clk 0:02:20.1]} 22. Rad1 {[%clk
0:01:33]} 22... Rfe8 {[%clk 0:02:11.7]} 23. Qa4 {[%clk 0:01:28.8]} 23... Bf8
{[%clk 0:02:07.9]} 24. Ne4 {[%clk 0:01:11.3]} 24... Qf7 {[%clk 0:01:44.2]} 25.
Qxa7 {[%clk 0:00:53.9]} 25... Rd7 {[%clk 0:01:39]} 26. Qa4 {[%clk 0:00:49.4]}
26... Red8 {[%clk 0:01:37.7]} 27. Qxc6 {[%clk 0:00:11.4]} 27... Be7 {[%clk
0:01:34.1]} 28. Ng3 {[%clk 0:00:07.6]} 28... Bxd3 {[%clk 0:01:30.7]} 29. Rf2
{[%clk 0:00:07.7]} 29... f5 {[%clk 0:01:20]} 30. Bc1 {[%clk 0:00:05.7]} 30... e4
{[%clk 0:01:18.7]} 31. Bf4 {[%clk 0:00:04.5]} 31... Bf6 {[%clk 0:01:18]} 32.
Rfd2 {[%clk 0:00:03.9]} 32... Bg7 {[%clk 0:01:14.3]} 33. Nf1 {[%clk 0:00:03.8]}
33... Qf6 {[%clk 0:01:14.3]} 34. Qxf6 {[%clk 0:00:03.2]} 34... Bxf6 {[%clk
0:01:15.2]} 35. Ne3 {[%clk 0:00:03.5]} 35... Rc8 {[%clk 0:01:14.8]} 36. h4
{[%clk 0:00:03.2]} 36... Kg7 {[%clk 0:01:14.8]} 37. b3 {[%clk 0:00:03.5]} 37...
Bd4 {[%clk 0:01:12.3]} 38. Kh2 {[%clk 0:00:02.7]} 38... Bc3 {[%clk 0:01:12.6]}
39. Rf2 {[%clk 0:00:02.3]} 39... Rcd8 {[%clk 0:01:04.4]} 40. Kg3 {[%clk
0:00:02.6]} 40... Bb5 {[%clk 0:01:03.6]} 41. Rxd7+ {[%clk 0:00:01.6]} 41... Rxd7
{[%clk 0:01:04.5]} 42. Nc4 {[%clk 0:00:02.5]} 42... Bxc4 {[%clk 0:01:04.3]} 43.
bxc4 {[%clk 0:00:03.4]} 43... Rd3+ {[%clk 0:01:02.9]} 44. Kh2 {[%clk 0:00:03.4]}
44... Bf6 {[%clk 0:01:01.7]} 45. Rc2 {[%clk 0:00:03.4]} 45... Bxh4 {[%clk
0:01:00.7]} 46. c5 {[%clk 0:00:03.5]} 46... e3 {[%clk 0:00:59.1]} 47. c6 {[%clk
0:00:03.7]} 47... e2 {[%clk 0:00:58.3]} 48. Rxe2 {[%clk 0:00:03.7]} 48... Rc3
{[%clk 0:00:57.4]} 49. c7 {[%clk 0:00:04.2]} 49... Rc6 {[%clk 0:00:51]} 50. Re8
{[%clk 0:00:03.8]} 50... g5 {[%clk 0:00:50.1]} 51. Be5+ {[%clk 0:00:03.9]} 51...
Kf7 {[%clk 0:00:49.7]} 52. c8=Q {[%clk 0:00:04.8]} 1-0

[Event "*** SCC Grand Prix: Titled Tuesday Blitz"]
[Site "Chess.com"]
[Date "2020.06.23"]
[Round "1"]
[White "bazar-wokzal"]
[Black "amintabatabaei"]
[Result "0-1"]
[WhiteElo "2416"]
[BlackElo "2819"]
[TimeControl "180+1"]
[EndTime "10:07:23 PDT"]
[Termination "amintabatabaei won on time"]

1. e4 {[%clk 0:02:56.8]} 1... c5 {[%clk 0:02:58.2]} 2. c3 {[%clk 0:02:50]} 2...
Nf6 {[%clk 0:02:57.8]} 3. e5 {[%clk 0:02:49.8]} 3... Nd5 {[%clk 0:02:58.1]} 4.
d4 {[%clk 0:02:50.4]} 4... cxd4 {[%clk 0:02:59]} 5. cxd4 {[%clk 0:02:50.8]} 5...
d6 {[%clk 0:02:59.6]} 6. Bc4 {[%clk 0:02:50.6]} 6... e6 {[%clk 0:02:57.3]} 7.
Nf3 {[%clk 0:02:48.9]} 7... Be7 {[%clk 0:02:57.2]} 8. O-O {[%clk 0:02:48.2]}
8... O-O {[%clk 0:02:57.5]} 9. Qe2 {[%clk 0:02:48]} 9... b6 {[%clk 0:02:55.6]}
10. Nc3 {[%clk 0:02:37]} 10... Nxc3 {[%clk 0:02:53.4]} 11. bxc3 {[%clk
0:02:36.7]} 11... Bb7 {[%clk 0:02:53.8]} 12. Bf4 {[%clk 0:02:31.6]} 12... dxe5
{[%clk 0:02:44.3]} 13. Nxe5 {[%clk 0:02:26.8]} 13... Nd7 {[%clk 0:02:43.5]} 14.
Rfe1 {[%clk 0:02:07]} 14... Nxe5 {[%clk 0:02:42.4]} 15. Bxe5 {[%clk 0:02:01.5]}
15... Rc8 {[%clk 0:02:40.8]} 16. Rac1 {[%clk 0:01:58.4]} 16... Bd6 {[%clk
0:02:33.9]} 17. Bb3 {[%clk 0:01:50.3]} 17... Bxe5 {[%clk 0:02:30]} 18. Qxe5
{[%clk 0:01:50.1]} 18... Qc7 {[%clk 0:02:30.2]} 19. Qg5 {[%clk 0:01:30.3]} 19...
h6 {[%clk 0:02:26.7]} 20. Qg4 {[%clk 0:01:20.7]} 20... Rfd8 {[%clk 0:02:16.4]}
21. Re3 {[%clk 0:01:19.1]} 21... Qe7 {[%clk 0:02:07.3]} 22. Rce1 {[%clk
0:01:15.1]} 22... Qg5 {[%clk 0:01:47.6]} 23. Qxg5 {[%clk 0:01:04.4]} 23... hxg5
{[%clk 0:01:48.5]} 24. f3 {[%clk 0:01:00.9]} 24... Rc7 {[%clk 0:01:42.3]} 25.
Kf2 {[%clk 0:01:00.8]} 25... Rdc8 {[%clk 0:01:33.1]} 26. Rc1 {[%clk 0:00:59.8]}
26... Ba6 {[%clk 0:01:33.6]} 27. Ke1 {[%clk 0:00:51.9]} 27... Bc4 {[%clk
0:01:33.8]} 28. Kd2 {[%clk 0:00:51.5]} 28... Kh7 {[%clk 0:01:32.4]} 29. Re5
{[%clk 0:00:37.3]} 29... Kg6 {[%clk 0:01:32.3]} 30. Re3 {[%clk 0:00:28.9]} 30...
b5 {[%clk 0:01:26.9]} 31. g3 {[%clk 0:00:27.9]} 31... a5 {[%clk 0:01:26.7]} 32.
Rh1 {[%clk 0:00:23.7]} 32... b4 {[%clk 0:01:06.6]} 33. cxb4 {[%clk 0:00:20.5]}
33... Bxb3 {[%clk 0:01:07]} 34. Rxb3 {[%clk 0:00:18.4]} 34... Rc2+ {[%clk
0:01:07.7]} 35. Ke3 {[%clk 0:00:13.5]} 35... axb4 {[%clk 0:01:06.6]} 36. h4
{[%clk 0:00:09.9]} 36... Rxa2 {[%clk 0:00:45]} 37. hxg5 {[%clk 0:00:09.7]} 37...
Ra3 {[%clk 0:00:45.2]} 38. Rxa3 {[%clk 0:00:08.6]} 38... bxa3 {[%clk 0:00:46.1]}
39. f4 {[%clk 0:00:08.3]} 39... Kf5 {[%clk 0:00:42.3]} 40. Ra1 {[%clk
0:00:05.4]} 40... Rc3+ {[%clk 0:00:40.1]} 41. Kf2 {[%clk 0:00:05.8]} 41... Kg4
{[%clk 0:00:39.3]} 42. Ra2 {[%clk 0:00:02.5]} 42... Rxg3 {[%clk 0:00:37.3]} 43.
g6 {[%clk 0:00:01.1]} 43... fxg6 {[%clk 0:00:37.1]} 44. f5 {[%clk 0:00:01.5]}
44... gxf5 {[%clk 0:00:38]} 0-1

[Event "*** SCC Grand Prix: Titled Tuesday Blitz"]
[Site "Chess.com"]
[Date "2020.06.23"]
[Round "1"]
[White "kleopl"]
[Black "JonahWillow"]
[Result "1-0"]
[WhiteElo "2397"]
[BlackElo "2709"]
[TimeControl "180+1"]
[EndTime "10:07:23 PDT"]
[Termination "kleopl won by resignation"]

1. c4 {[%clk 0:02:52.1]} 1... c5 {[%clk 0:02:58.3]} 2. Nf3 {[%clk 0:02:50.7]}
2... Nc6 {[%clk 0:02:56.4]} 3. Nc3 {[%clk 0:02:47.9]} 3... g6 {[%clk 0:02:52.7]}
4. g3 {[%clk 0:02:44]} 4... Bg7 {[%clk 0:02:44.2]} 5. Bg2 {[%clk 0:02:44.2]}
5... d6 {[%clk 0:02:44.2]} 6. O-O {[%clk 0:02:43.2]} 6... e6 {[%clk 0:02:42.9]}
7. e3 {[%clk 0:02:41.3]} 7... Nge7 {[%clk 0:02:41.2]} 8. d4 {[%clk 0:02:40.8]}
8... O-O {[%clk 0:02:22.9]} 9. d5 {[%clk 0:02:35.5]} 9... exd5 {[%clk
0:02:19.1]} 10. cxd5 {[%clk 0:02:36.4]} 10... Na5 {[%clk 0:02:13.8]} 11. e4
{[%clk 0:02:33.6]} 11... a6 {[%clk 0:02:02.3]} 12. a4 {[%clk 0:02:30.6]} 12...
Rb8 {[%clk 0:01:55.4]} 13. Bg5 {[%clk 0:02:27.6]} 13... h6 {[%clk 0:01:43.1]}
14. Bxe7 {[%clk 0:02:26.6]} 14... Qxe7 {[%clk 0:01:44]} 15. Re1 {[%clk
0:02:26.5]} 15... Nc4 {[%clk 0:01:30.6]} 16. Qe2 {[%clk 0:02:20.4]} 16... b5
{[%clk 0:01:26.8]} 17. axb5 {[%clk 0:02:19.4]} 17... axb5 {[%clk 0:01:27.7]} 18.
Nxb5 {[%clk 0:02:12.2]} 18... Rxb5 {[%clk 0:01:13.8]} 19. Qxc4 {[%clk
0:02:12.1]} 19... Rxb2 {[%clk 0:01:14.7]} 20. Rad1 {[%clk 0:02:01.9]} 20... Rb4
{[%clk 0:01:11.1]} 21. Qe2 {[%clk 0:01:55.9]} 21... Re8 {[%clk 0:00:53.9]} 22.
e5 {[%clk 0:01:45.9]} 22... Bg4 {[%clk 0:00:50.4]} 23. e6 {[%clk 0:01:23.6]}
23... fxe6 {[%clk 0:00:44.7]} 24. h3 {[%clk 0:01:23.2]} 24... Bxf3 {[%clk
0:00:35.8]} 25. Bxf3 {[%clk 0:01:24.1]} 25... e5 {[%clk 0:00:32.8]} 26. Bg4
{[%clk 0:01:23.9]} 26... Qg5 {[%clk 0:00:27.4]} 27. Be6+ {[%clk 0:01:21.9]}
27... Kh7 {[%clk 0:00:27.1]} 28. Ra1 {[%clk 0:01:17]} 28... Reb8 {[%clk
0:00:19.1]} 29. Ra6 {[%clk 0:01:15.7]} 29... Rb3 {[%clk 0:00:18.8]} 30. Kh2
{[%clk 0:01:09]} 30... Rb2 {[%clk 0:00:19]} 31. Qf1 {[%clk 0:01:04.8]} 31... Rf8
{[%clk 0:00:19]} 32. Re2 {[%clk 0:01:05]} 32... Rxe2 {[%clk 0:00:14.1]} 33. Qxe2
{[%clk 0:01:05.1]} 33... Qf6 {[%clk 0:00:12.6]} 34. Kg2 {[%clk 0:01:00.6]} 34...
Qe7 {[%clk 0:00:13.2]} 35. Qa2 {[%clk 0:00:57.5]} 35... Rb8 {[%clk 0:00:12]} 36.
Ra7 {[%clk 0:00:55.4]} 36... Rb7 {[%clk 0:00:11.6]} 37. Ra8 {[%clk 0:00:55.9]}
37... Bf6 {[%clk 0:00:11.6]} 38. Bg8+ {[%clk 0:00:51.4]} 38... Kg7 {[%clk
0:00:11.9]} 39. Be6 {[%clk 0:00:51.6]} 39... h5 {[%clk 0:00:10.5]} 40. Rg8+
{[%clk 0:00:46.2]} 40... Kh7 {[%clk 0:00:11]} 41. Qc2 {[%clk 0:00:46.4]} 41...
e4 {[%clk 0:00:04.3]} 42. Qxe4 {[%clk 0:00:44.6]} 42... Qg7 {[%clk 0:00:04.7]}
43. Rxg7+ {[%clk 0:00:44.3]} 43... Kxg7 {[%clk 0:00:05.6]} 44. Bc8 {[%clk
0:00:42.6]} 44... Re7 {[%clk 0:00:05.3]} 45. Qf3 {[%clk 0:00:41.8]} 45... Be5
{[%clk 0:00:05.6]} 46. Be6 {[%clk 0:00:41.4]} 46... c4 {[%clk 0:00:05.3]} 47.
Qa3 {[%clk 0:00:34.6]} 47... c3 {[%clk 0:00:04.7]} 48. Qa8 {[%clk 0:00:34.5]}
48... Kf6 {[%clk 0:00:03.3]} 49. Qf8+ {[%clk 0:00:33.5]} 1-0

[Event "*** SCC Grand Prix: Titled Tuesday Blitz"]
[Site "Chess.com"]
[Date "2020.06.23"]
[Round "1"]
[White "akashcheck"]
[Black "Titus369"]
[Result "0-1"]
[WhiteElo "2239"]
[BlackElo "2571"]
[TimeControl "180+1"]
[EndTime "10:07:24 PDT"]
[Termination "Titus369 won by resignation"]

1. e4 {[%clk 0:03:00.8]} 1... c5 {[%clk 0:02:59.6]} 2. Nf3 {[%clk 0:02:59.5]}
2... d6 {[%clk 0:02:59.8]} 3. Bb5+ {[%clk 0:02:59.9]} 3... Nd7 {[%clk
0:02:57.1]} 4. O-O {[%clk 0:02:58.1]} 4... Nf6 {[%clk 0:02:56.9]} 5. Re1 {[%clk
0:02:55.5]} 5... a6 {[%clk 0:02:57.2]} 6. Bf1 {[%clk 0:02:53]} 6... b5 {[%clk
0:02:44.4]} 7. c3 {[%clk 0:02:53.1]} 7... Bb7 {[%clk 0:02:42.9]} 8. d3 {[%clk
0:02:46.1]} 8... e6 {[%clk 0:02:40]} 9. Bg5 {[%clk 0:02:40.7]} 9... Be7 {[%clk
0:02:39.9]} 10. Nbd2 {[%clk 0:02:40.6]} 10... O-O {[%clk 0:02:33]} 11. Rc1
{[%clk 0:02:34.9]} 11... Rc8 {[%clk 0:02:31.5]} 12. g3 {[%clk 0:02:28.9]} 12...
Qc7 {[%clk 0:02:28.2]} 13. Bg2 {[%clk 0:02:27.6]} 13... Qb8 {[%clk 0:02:22.8]}
14. Nf1 {[%clk 0:02:25.4]} 14... h6 {[%clk 0:02:16.5]} 15. Bf4 {[%clk
0:02:22.7]} 15... Qa8 {[%clk 0:02:04.7]} 16. h3 {[%clk 0:02:18.9]} 16... Rfe8
{[%clk 0:01:50.7]} 17. Qd2 {[%clk 0:02:17.1]} 17... Bf8 {[%clk 0:01:49.1]} 18.
N1h2 {[%clk 0:02:12.5]} 18... e5 {[%clk 0:01:49.1]} 19. Be3 {[%clk 0:02:10.1]}
19... c4 {[%clk 0:01:40.3]} 20. Nh4 {[%clk 0:01:45.4]} 20... cxd3 {[%clk
0:01:33.4]} 21. f3 {[%clk 0:01:45.8]} 21... d5 {[%clk 0:01:32.6]} 22. exd5
{[%clk 0:01:43.9]} 22... Nxd5 {[%clk 0:01:28.4]} 23. Bf2 {[%clk 0:01:40.5]}
23... Nc5 {[%clk 0:01:23.2]} 24. b4 {[%clk 0:00:51.4]} 24... Na4 {[%clk
0:01:13.5]} 25. Qxd3 {[%clk 0:00:51.5]} 25... Naxc3 {[%clk 0:01:06.1]} 26. a3
{[%clk 0:00:40.7]} 26... a5 {[%clk 0:01:04.9]} 27. Bc5 {[%clk 0:00:22]} 27...
Bxc5+ {[%clk 0:00:57]} 28. bxc5 {[%clk 0:00:22]} 28... b4 {[%clk 0:00:54.7]} 29.
Nf5 {[%clk 0:00:19.3]} 29... Rxc5 {[%clk 0:00:47.4]} 30. Nd6 {[%clk 0:00:19.3]}
30... Re6 {[%clk 0:00:46.1]} 31. Nxb7 {[%clk 0:00:19.1]} 31... Qxb7 {[%clk
0:00:47]} 32. f4 {[%clk 0:00:17.4]} 32... exf4 {[%clk 0:00:42.3]} 33. Rxe6
{[%clk 0:00:15.3]} 33... fxe6 {[%clk 0:00:43.2]} 34. gxf4 {[%clk 0:00:15.7]}
34... Ne2+ {[%clk 0:00:41.6]} 35. Qxe2 {[%clk 0:00:13.7]} 35... Rxc1+ {[%clk
0:00:41.7]} 36. Kf2 {[%clk 0:00:13.9]} 36... Qb6+ {[%clk 0:00:37.2]} 37. Kg3
{[%clk 0:00:11.8]} 37... Qe3+ {[%clk 0:00:33.6]} 38. Qxe3 {[%clk 0:00:11.9]}
38... Nxe3 {[%clk 0:00:34.5]} 39. axb4 {[%clk 0:00:10.6]} 39... axb4 {[%clk
0:00:30.6]} 40. Be4 {[%clk 0:00:10.2]} 40... b3 {[%clk 0:00:29.3]} 41. Nf3
{[%clk 0:00:10.6]} 41... b2 {[%clk 0:00:29.1]} 42. Nd2 {[%clk 0:00:10.7]} 42...
Nc4 {[%clk 0:00:26.7]} 43. Nxc4 {[%clk 0:00:07.4]} 43... Rxc4 {[%clk 0:00:27.6]}
44. Bd3 {[%clk 0:00:06.7]} 44... Rc1 {[%clk 0:00:27.9]} 0-1

[Event "*** SCC Grand Prix: Titled Tuesday Blitz"]
[Site "Chess.com"]
[Date "2020.06.23"]
[Round "1"]
[White "olksuna"]
[Black "LuisFSiles"]
[Result "0-1"]
[WhiteElo "2608"]
[BlackElo "2322"]
[TimeControl "180+1"]
[EndTime "10:07:27 PDT"]
[Termination "LuisFSiles won on time"]

1. c4 {[%clk 0:03:00]} 1... Nf6 {[%clk 0:02:55.3]} 2. Nc3 {[%clk 0:02:59.9]}
2... g6 {[%clk 0:02:54.9]} 3. d4 {[%clk 0:02:57.9]} 3... Bg7 {[%clk 0:02:54.8]}
4. e4 {[%clk 0:02:58.5]} 4... d6 {[%clk 0:02:54.8]} 5. Be2 {[%clk 0:02:59.1]}
5... O-O {[%clk 0:02:54.8]} 6. Bg5 {[%clk 0:02:59.7]} 6... c5 {[%clk 0:02:51.8]}
7. d5 {[%clk 0:02:59.2]} 7... h6 {[%clk 0:02:51.8]} 8. Bf4 {[%clk 0:02:59]} 8...
e6 {[%clk 0:02:52]} 9. dxe6 {[%clk 0:02:59.9]} 9... Bxe6 {[%clk 0:02:50.7]} 10.
Bxd6 {[%clk 0:03:00.4]} 10... Re8 {[%clk 0:02:49.8]} 11. e5 {[%clk 0:03:00.1]}
11... Nfd7 {[%clk 0:02:49.7]} 12. f4 {[%clk 0:02:59.2]} 12... Nc6 {[%clk
0:02:38.4]} 13. Nf3 {[%clk 0:02:58.2]} 13... f6 {[%clk 0:02:10.4]} 14. Bd3
{[%clk 0:02:49.3]} 14... Bf7 {[%clk 0:02:02.7]} 15. O-O {[%clk 0:02:22.1]} 15...
fxe5 {[%clk 0:02:00.4]} 16. f5 {[%clk 0:02:22.5]} 16... gxf5 {[%clk 0:01:51]}
17. Bxf5 {[%clk 0:02:23.4]} 17... Bxc4 {[%clk 0:01:44.8]} 18. Re1 {[%clk
0:01:52.5]} 18... Qf6 {[%clk 0:01:36]} 19. Bxd7 {[%clk 0:01:48]} 19... Red8
{[%clk 0:01:30.6]} 20. Ne4 {[%clk 0:01:48.2]} 20... Qf4 {[%clk 0:01:23.6]} 21.
Qc2 {[%clk 0:01:39.3]} 21... Bd5 {[%clk 0:01:18.3]} 22. Bxc6 {[%clk 0:01:31]}
22... Bxc6 {[%clk 0:01:13.7]} 23. Bxc5 {[%clk 0:01:27.2]} 23... Rac8 {[%clk
0:01:08.4]} 24. Qb3+ {[%clk 0:01:24.6]} 24... Bd5 {[%clk 0:01:05.6]} 25. Qb4
{[%clk 0:01:04.3]} 25... a5 {[%clk 0:00:59.4]} 26. Qa4 {[%clk 0:00:47.9]} 26...
b5 {[%clk 0:00:56.1]} 27. Qc2 {[%clk 0:00:32.2]} 27... Bxe4 {[%clk 0:00:44]} 28.
Rxe4 {[%clk 0:00:33.1]} 28... Rxc5 {[%clk 0:00:44]} 29. Qe2 {[%clk 0:00:33.4]}
29... Rc1+ {[%clk 0:00:34.5]} 30. Rxc1 {[%clk 0:00:27.5]} 30... Qxc1+ {[%clk
0:00:33.8]} 31. Kf2 {[%clk 0:00:26.3]} 31... Qc5+ {[%clk 0:00:32.9]} 32. Kg3
{[%clk 0:00:24.6]} 32... Rf8 {[%clk 0:00:24.9]} 33. h3 {[%clk 0:00:23.8]} 33...
Bf6 {[%clk 0:00:21.2]} 34. Kh2 {[%clk 0:00:23.8]} 34... Qc7 {[%clk 0:00:19.6]}
35. b3 {[%clk 0:00:23.3]} 35... Bg7 {[%clk 0:00:19.8]} 36. Qxb5 {[%clk
0:00:19.4]} 36... Rf4 {[%clk 0:00:19.7]} 37. Qd3 {[%clk 0:00:17.5]} 37... Qf7
{[%clk 0:00:18]} 38. Qd8+ {[%clk 0:00:15]} 38... Kh7 {[%clk 0:00:17.5]} 39. Qa8
{[%clk 0:00:06.4]} 39... Qf5 {[%clk 0:00:15.9]} 40. Rxf4 {[%clk 0:00:04.2]}
40... Qxf4+ {[%clk 0:00:16.8]} 41. Kh1 {[%clk 0:00:03.6]} 41... e4 {[%clk
0:00:17.2]} 42. Ng1 {[%clk 0:00:02.1]} 42... Be5 {[%clk 0:00:16.6]} 0-1

[Event "*** SCC Grand Prix: Titled Tuesday Blitz"]
[Site "Chess.com"]
[Date "2020.06.23"]
[Round "1"]
[White "doons21"]
[Black "mfwagnerpeixoto"]
[Result "1-0"]
[WhiteElo "2546"]
[BlackElo "2190"]
[TimeControl "180+1"]
[EndTime "10:07:27 PDT"]
[Termination "doons21 won by resignation"]

1. e4 {[%clk 0:03:00.9]} 1... c5 {[%clk 0:02:59.2]} 2. c3 {[%clk 0:03:00.8]}
2... Nf6 {[%clk 0:02:58]} 3. e5 {[%clk 0:03:00.9]} 3... Nd5 {[%clk 0:02:57.9]}
4. d4 {[%clk 0:03:01.8]} 4... cxd4 {[%clk 0:02:58.7]} 5. Nf3 {[%clk 0:03:02.3]}
5... e6 {[%clk 0:02:58.1]} 6. Bc4 {[%clk 0:03:02.5]} 6... Nb6 {[%clk 0:02:50.7]}
7. Bb3 {[%clk 0:03:02.3]} 7... Nc6 {[%clk 0:02:45.8]} 8. cxd4 {[%clk 0:03:01.8]}
8... d6 {[%clk 0:02:46.2]} 9. Qe2 {[%clk 0:03:00.4]} 9... dxe5 {[%clk
0:02:40.6]} 10. dxe5 {[%clk 0:02:59.8]} 10... Be7 {[%clk 0:02:40.2]} 11. O-O
{[%clk 0:02:59.6]} 11... O-O {[%clk 0:02:33.1]} 12. Rd1 {[%clk 0:02:58.9]} 12...
Qc7 {[%clk 0:02:32.7]} 13. Nc3 {[%clk 0:02:56.1]} 13... a6 {[%clk 0:02:33]} 14.
a3 {[%clk 0:02:48.4]} 14... Na5 {[%clk 0:02:29.1]} 15. Bc2 {[%clk 0:02:46.5]}
15... Bd7 {[%clk 0:02:26.6]} 16. Qe4 {[%clk 0:02:42.7]} 16... g6 {[%clk
0:02:24.9]} 17. Bh6 {[%clk 0:02:04.8]} 17... Rfd8 {[%clk 0:02:20.7]} 18. Qf4
{[%clk 0:02:01.9]} 18... Nac4 {[%clk 0:01:49.7]} 19. Ne4 {[%clk 0:01:55.8]}
19... Bc6 {[%clk 0:01:26.6]} 20. Nf6+ {[%clk 0:01:53]} 20... Kh8 {[%clk
0:01:23.8]} 21. Ng5 {[%clk 0:01:41.3]} 21... Rf8 {[%clk 0:01:04.6]} 22. Bxf8
{[%clk 0:01:19.6]} 22... Rxf8 {[%clk 0:01:05.5]} 23. Nfxh7 {[%clk 0:01:16.8]}
23... Nxe5 {[%clk 0:00:51.6]} 24. Qh4 {[%clk 0:01:00.3]} 24... Kg7 {[%clk
0:00:44.1]} 25. Qd4 {[%clk 0:00:40.6]} 25... Bxg5 {[%clk 0:00:34.7]} 26. Nxg5
{[%clk 0:00:39.3]} 26... Kg8 {[%clk 0:00:21.8]} 27. Qh4 {[%clk 0:00:35.6]} 27...
Kg7 {[%clk 0:00:22.1]} 28. Qg3 {[%clk 0:00:20.3]} 28... Nd5 {[%clk 0:00:16.6]}
29. Re1 {[%clk 0:00:20.2]} 29... Nd7 {[%clk 0:00:13.5]} 30. Qxc7 {[%clk
0:00:20]} 30... Nxc7 {[%clk 0:00:14.4]} 31. Rac1 {[%clk 0:00:20.1]} 31... Nd5
{[%clk 0:00:14.2]} 32. Ne4 {[%clk 0:00:20.3]} 32... N7f6 {[%clk 0:00:14.9]} 33.
Nxf6 {[%clk 0:00:19.7]} 33... Kxf6 {[%clk 0:00:15.8]} 34. Be4 {[%clk 0:00:19.8]}
34... Rd8 {[%clk 0:00:14.6]} 35. Red1 {[%clk 0:00:19.7]} 35... Rh8 {[%clk
0:00:14]} 36. f3 {[%clk 0:00:19.7]} 36... Nf4 {[%clk 0:00:12.5]} 37. Re1 {[%clk
0:00:17.3]} 37... Bxe4 {[%clk 0:00:11.9]} 38. Rxe4 {[%clk 0:00:18.2]} 38... Nd3
{[%clk 0:00:12.2]} 39. Rc7 {[%clk 0:00:18.3]} 39... Ne5 {[%clk 0:00:13.1]} 40.
Rxb7 {[%clk 0:00:18.3]} 40... Nc6 {[%clk 0:00:13.2]} 41. Rf4+ {[%clk 0:00:17.7]}
41... Ke5 {[%clk 0:00:12.8]} 42. Rfxf7 {[%clk 0:00:18.1]} 42... Rd8 {[%clk
0:00:11.7]} 43. Kf2 {[%clk 0:00:17]} 43... Rd2+ {[%clk 0:00:11.4]} 44. Kg3
{[%clk 0:00:17.9]} 44... Rxb2 {[%clk 0:00:10.9]} 45. Rxb2 {[%clk 0:00:17.3]} 1-0